fUST/lending_fUST_20260211
["ID","MTS","AMOUNT","RATE_DAILY","PERIOD"]
[405093401,1770792551792,-500.0,0.00028189,2]
[405093402,1770792551816,-500.0,0.00028189,2]
[405093403,1770792551842,-540.0,0.00028189,2]
[405093404,1770792551867,-500.0,0.00028189,2]
[405093405,1770792551892,-500.0,0.00028189,2]
[405093406,1770792551917,-500.0,0.00028189,2]
[405093407,1770792551940,-500.0,0.00028189,2]
[405093408,1770792551964,-500.0,0.00028189,2]
[405093409,1770792551986,-500.0,0.00028189,2]
[405093410,1770792552008,-500.0,0.00028189,2]
[405093411,1770792552032,-500.0,0.00028189,2]
[405093412,1770792552053,-500.0,0.00028189,2]
[405093413,1770792552075,-500.0,0.00028189,2]
[405093414,1770792552099,-500.0,0.00028189,2]
[405093415,1770792552122,-500.0,0.00028189,2]
[405093416,1770792552146,-500.0,0.00028189,2]
[405093417,1770792552171,-500.0,0.00028189,2]
[405093418,1770792552197,-500.0,0.00028189,2]
[405093419,1770792552221,-500.0,0.00028189,2]
[405093420,1770792552244,-500.0,0.00028189,2]
[405093421,1770792552268,-500.0,0.00028189,2]
[405093422,1770792552291,-500.0,0.00028189,2]
[405093423,1770792552314,-500.0,0.00028189,2]
[405093424,1770792552336,-500.0,0.00028189,2]
[405093425,1770792552358,-227.35954333,0.00028189,2]
[405093426,1770792552382,-500.0,0.00028189,2]
[405093427,1770792552404,-500.0,0.00028189,2]
[405093428,1770792552424,-500.0,0.00028189,2]
[405093429,1770792552448,-500.0,0.00028189,2]
[405093430,1770792552470,-500.0,0.00028189,2]
[405093431,1770792552491,-500.0,0.00028189,2]
[405093432,1770792552513,-500.0,0.00028189,2]
[405093433,1770792552534,-500.0,0.00028189,2]
[405093434,1770792552555,-500.0,0.00028189,2]
[405093435,1770792552577,-500.0,0.00028189,2]
[405093436,1770792552599,-500.0,0.00028189,2]
[405093437,1770792552622,-500.0,0.00028189,2]
[405093438,1770792552716,-500.0,0.00028189,2]
[405093439,1770792552742,-500.0,0.00028189,2]
[405093440,1770792552764,-500.0,0.00028189,2]
[405093441,1770792552786,-500.0,0.00028189,2]
[405093442,1770792552809,-500.0,0.00028189,2]
[405093443,1770792552833,-500.0,0.00028189,2]
[405093444,1770792552854,-500.0,0.00028189,2]
[405093445,1770792552877,-500.0,0.00028189,2]
[405093446,1770792552900,-500.0,0.00028189,2]
[405093447,1770792552926,-500.0,0.00028189,2]
[405093448,1770792552948,-500.0,0.00028189,2]
[405093449,1770792552970,-500.0,0.00028189,2]
[405093450,1770792552991,-500.0,0.00028189,2]
[405093451,1770792553013,-500.0,0.00028189,2]
[405093452,1770792553034,-500.0,0.00028189,2]
[405093453,1770792553056,-500.0,0.00028189,2]
[405093454,1770792553078,-500.0,0.00028189,2]
[405093455,1770792553100,-500.0,0.00028189,2]
[405093456,1770792553121,-500.0,0.00028189,2]
[405093457,1770792553142,-500.0,0.00028189,2]
[405093458,1770792553163,-500.0,0.00028189,2]
[405093459,1770792553185,-500.0,0.00028189,2]
[405093460,1770792553204,-500.0,0.00028189,2]
[405093461,1770792553226,-500.0,0.00028189,2]
[405093462,1770792553249,-490.70969057,0.00028189,2]
[405093463,1770792553270,-500.0,0.00028189,2]
[405093464,1770792553291,-500.0,0.00028189,2]
[405093465,1770792553313,-499.99999999,0.00028189,2]
[405093466,1770792553334,-500.0,0.00028189,2]
[405093467,1770792553356,-500.0,0.00028189,2]
[405093468,1770792553380,-200.0,0.00028189,2]
[405093469,1770792553403,-499.99999999,0.00028189,2]
[405093470,1770792553426,-500.0,0.00028189,2]
[405093471,1770792553448,-500.0,0.00028189,2]
[405093472,1770792553470,-500.0,0.00028189,2]
[405093473,1770792553492,-500.0,0.00028189,2]
[405093474,1770792553514,-22520.91847122,0.00028189,2]
[405093475,1770792559088,-500.0,0.00028189,2]
[405093476,1770792559108,-66.22181526,0.00028189,2]
[405093477,1770792559128,-204.0,0.00028328,2]
[405093478,1770792559150,-420.0,0.00028742,2]
[405093479,1770792559172,-1680.0,0.00029159,2]
[405093480,1770792559191,-208.7940589,0.00029229,60]
[405093481,1770792559212,-231.0,0.00030328,2]
[405093482,1770792559232,-587.0,0.00031087,2]
[405093483,1770792559254,-7272.14691237,0.00031432,2]
[405093484,1770792559273,-289.0,0.00031558,3]
[405093485,1770792559292,-1124.0,0.00031668,3]
[405093486,1770792559311,-2724.12492721,0.000329,2]
[405093487,1770792564322,5000.0,0.00024953,2]
[405093488,1770792572110,3409.75181298,0.00024953,2]
[405093489,1770792576081,3024.75660526,0.00025583,2]
[405093490,1770792576162,2540.68102938,0.00029438,2]
[405093491,1770792576184,422.79355521,0.00029438,2]
[405093492,1770792586963,5000.0,0.00024953,2]
[405093493,1770792609791,586.44341981,0.00024953,2]
[405093526,1770792638037,-4018.0,0.00024953,2]
[405093527,1770792638049,-395.55658019,0.00024953,2]
[405093528,1770792638059,-4512.57045568,0.00029438,2]
[405093529,1770792638069,-400.0,0.00032899,2]
[405093530,1770792638079,-5084.68111626,0.000329,2]
[405093531,1770792638089,-3573.7943716,0.00033187,2]
[405093532,1770792638099,-152.41355738,0.000332,117]
[405093533,1770792638109,-11927.33347528,0.00033686,2]
[405093534,1770792638118,-878.95647311,0.00033855,2]
[405093535,1770792638128,-156.50653843,0.00033955,120]
[405093536,1770792638138,-179.95592235,0.000345,2]
[405093537,1770792638147,-179.95592235,0.000345,2]
[405093538,1770792638157,-179.95592235,0.000345,2]
[405093539,1770792638166,-553.32023519,0.00034785,2]
[405093540,1770792638176,-150.0,0.00035,7]
[405093541,1770792638186,-878.95647307,0.00035113,2]
[405093542,1770792638195,-383.95874333,0.00035141,5]
[405093543,1770792638204,-560.0,0.00035352,2]
[405093544,1770792638213,-186.55,0.0003588,10]
[405093545,1770792638223,-13990.56651648,0.0003589,10]
[405093546,1770792638694,-6801.20662402,0.0003589,10]
[405093569,1770792640268,-3e-08,0.0003589,10]
[405093736,1770792646108,-83.87841266,0.0003589,10]
[405093737,1770792646120,-4314.18415807,0.0003589,10]
[405093738,1770792646251,-6167.1240152,0.0003589,10]
[405093741,1770792673480,-300.0,0.00024953,2]
[405093742,1770792871511,303.10001603,0.000189,2]
[405093743,1770792871569,151.55000868,0.00019089,2]
[405093745,1770792959957,162.52698561,0.00024,2]
[405093746,1770792974418,459.592,0.00013273,2]
[405093747,1770792981973,851.9688985,0.00024,2]
[405093748,1770793040527,5000.0,0.00024,2]
[405093749,1770793066800,303.10001603,0.000189,2]
[405093750,1770793066858,302.58027932,0.00019089,2]
[405093753,1770793287487,155.22784834,0.00013699,2]
[405093754,1770793313772,1235.18,0.0003013,120]
[405093755,1770793319403,-950.0,0.00024331,2]
[405093756,1770793391200,2310.35394749,0.00024,30]
[405093757,1770793413334,-200.0,0.00024,30]
[405093758,1770793414256,-200.0,0.00024,30]
[405093759,1770793415204,-200.0,0.00024,30]
[405093760,1770793416029,-200.0,0.00024,30]
[405093761,1770793462313,570.0,0.000237,2]
[405093762,1770793551108,-1782.98249438,0.00024,30]
[405093764,1770793564528,501.00288001,0.00013273,2]
[405093766,1770793612650,-649.99999996,0.00023759,2]
[405093767,1770793615256,-265.12851617,0.00023759,2]
[405093768,1770793617604,-342.2128281,0.00023759,2]
[405093769,1770793622662,-300.0,0.00023759,2]
[405093770,1770793625974,915.12851613,0.000237,2]
[405093771,1770793628281,-58.89210677,0.00023759,2]
[405093772,1770793628302,-761.88742294,0.00024,30]
[405093773,1770793641088,-607.31349073,0.00024,30]
[405093774,1770793641261,5000.0,0.000237,2]
[405093775,1770793663267,5000.0,0.000237,2]
[405093776,1770793686041,5000.0,0.000237,2]
[405093777,1770793708044,5000.0,0.000237,2]
[405093778,1770793723895,2255.2791637,0.00023195,2]
[405093779,1770793730295,5000.0,0.000237,2]
[405093780,1770793747113,-3737.46264446,0.00024,30]
[405093781,1770793747142,-150.0,0.0002401,2]
[405093782,1770793747174,-1352.5814751,0.00024019,2]
[405093783,1770793747201,-300.0,0.00024059,2]
[405093784,1770793747225,-300.0,0.00024059,2]
[405093785,1770793747249,-300.0,0.0002406,2]
[405093786,1770793747274,-300.0,0.0002406,2]
[405093787,1770793747302,-300.0,0.0002406,2]
[405093788,1770793747330,-1200.0,0.0002406,2]
[405093789,1770793747357,-240.4525439,0.00024304,2]
[405093790,1770793747384,-405.0908273,0.00024359,2]
[405093791,1770793747409,-500.0,0.00024359,2]
[405093792,1770793747435,-500.0,0.00024359,2]
[405093793,1770793747461,-500.0,0.00024359,2]
[405093794,1770793747487,-500.0,0.00024359,2]
[405093795,1770793747512,-500.0,0.00024359,2]
[405093796,1770793747537,-500.0,0.00024359,2]
[405093797,1770793747562,-500.0,0.00024359,2]
[405093798,1770793747710,-500.0,0.00024359,2]
[405093799,1770793747735,-298.78036828,0.00024359,2]
[405093800,1770793747758,-500.0,0.00024359,2]
[405093801,1770793747781,-500.0,0.00024359,2]
[405093802,1770793747803,-500.0,0.00024359,2]
[405093803,1770793747825,-608.94340312,0.00024359,2]
[405093804,1770793747847,-500.0,0.00024359,2]
[405093805,1770793747880,-500.0,0.00024359,2]
[405093806,1770793747907,-631.68759524,0.00024359,2]
[405093807,1770793747929,-500.0,0.00024359,2]
[405093808,1770793747955,-500.0,0.00024359,2]
[405093809,1770793747978,-500.0,0.00024359,2]
[405093810,1770793748001,-500.0,0.00024359,2]
[405093811,1770793748026,-500.0,0.00024359,2]
[405093812,1770793748050,-500.0,0.00024359,2]
[405093813,1770793748072,-500.0,0.00024359,2]
[405093814,1770793748094,-500.0,0.00024359,2]
[405093815,1770793748117,-500.0,0.00024359,2]
[405093816,1770793748139,-500.0,0.00024359,2]
[405093817,1770793748161,-410.04340505,0.00024359,2]
[405093818,1770793748187,-500.0,0.00024359,2]
[405093819,1770793748208,-500.0,0.00024359,2]
[405093820,1770793748231,-500.0,0.00024359,2]
[405093821,1770793748258,-500.0,0.00024359,2]
[405093822,1770793748281,-500.0,0.00024359,2]
[405093823,1770793748304,-500.0,0.00024359,2]
[405093824,1770793748326,-500.0,0.00024359,2]
[405093825,1770793748348,-500.0,0.00024359,2]
[405093826,1770793748371,-500.0,0.00024359,2]
[405093827,1770793748393,-500.0,0.00024359,2]
[405093828,1770793748415,-500.0,0.00024359,2]
[405093829,1770793748436,-500.0,0.00024359,2]
[405093830,1770793748456,-500.0,0.00024359,2]
[405093831,1770793748478,-500.0,0.00024359,2]
[405093832,1770793748499,-500.0,0.00024359,2]
[405093833,1770793748522,-500.0,0.00024359,2]
[405093834,1770793748544,-500.0,0.00024359,2]
[405093835,1770793748566,-500.0,0.00024359,2]
[405093836,1770793748589,-500.0,0.00024359,2]
[405093837,1770793748610,-500.0,0.00024359,2]
[405093838,1770793748631,-500.0,0.00024359,2]
[405093839,1770793748656,-500.0,0.00024359,2]
[405093840,1770793748678,-500.0,0.00024359,2]
[405093841,1770793748701,-500.0,0.00024359,2]
[405093842,1770793748722,-500.0,0.00024359,2]
[405093843,1770793748744,-500.0,0.00024359,2]
[405093844,1770793748764,-500.0,0.00024359,2]
[405093845,1770793748784,-500.0,0.00024359,2]
[405093846,1770793748804,-500.0,0.00024359,2]
[405093847,1770793748825,-500.0,0.00024359,2]
[405093848,1770793748849,-189.34222267,0.00024359,2]
[405093849,1770793748870,-500.0,0.00024359,2]
[405093850,1770793748918,-500.0,0.00024359,2]
[405093851,1770793748939,-500.0,0.00024359,2]
[405093852,1770793748960,-500.0,0.00024359,2]
[405093853,1770793748981,-500.0,0.00024359,2]
[405093854,1770793749002,-500.0,0.00024359,2]
[405093855,1770793749024,-500.0,0.00024359,2]
[405093856,1770793749045,-318.93422227,0.00024359,2]
[405093857,1770793749067,-2143.88070348,0.0002436,2]
[405093858,1770793749091,-3073.17830324,0.0002436,2]
[405093859,1770793749123,-46926.82169676,0.0002436,2]
[405093860,1770793749160,-200.0,0.00024658,2]
[405093861,1770793749198,-155.98,0.000247,2]
[405093862,1770793749227,-213.1,0.0002489,10]
[405093863,1770793749248,-177.59,0.0002489,10]
[405093864,1770793749267,-20000.0,0.000249,2]
[405093865,1770793749289,-4394.77722053,0.00024928,2]
[405093866,1770793749309,-636.29211667,0.00025816,2]
[405093867,1770793749331,-6645.67373758,0.00025846,2]
[405093868,1770793749352,-177.0,0.0002601,2]
[405093869,1770793749373,-420.0,0.00026089,2]
[405093870,1770793749392,-420.0,0.0002609,2]
[405093871,1770793749412,-420.0,0.0002609,2]
[405093872,1770793749432,-8229.4522152,0.00026122,2]
[405093873,1770793749452,-1251.1944916,0.00026205,2]
[405093874,1770793749472,-1680.0,0.0002621,2]
[405093875,1770793749496,-8896.57025463,0.00026763,2]
[405093876,1770793749516,-500.0,0.00027397,2]
[405093877,1770793749536,-560.11,0.00027397,2]
[405093878,1770793749555,-503.08111226,0.00027397,5]
[405093879,1770793749575,-150.0,0.00027397,5]
[405093880,1770793749595,-2190.34665342,0.00027671,2]
[405093881,1770793749617,-9790.06692759,0.00027681,2]
[405093882,1770793751139,-5692.10212722,0.00024259,2]
[405093883,1770793751162,-1357.39984409,0.00027681,2]
[405093884,1770793751190,-250.0,0.00027945,5]
[405093885,1770793751213,-204.0,0.0002801,2]
[405093886,1770793751234,-200.0,0.00028014,2]
[405093887,1770793751255,-587.0,0.0002829,2]
[405093888,1770793751275,-543.0,0.00028292,2]
[405093889,1770793751294,-152.3477101,0.00028493,5]
[405093890,1770793751314,-1970.0,0.00028551,2]
[405093891,1770793751335,-13398.36328873,0.00028599,2]
[405093892,1770793751453,-420.0,0.00028851,2]
[405093893,1770793751474,-20000.0,0.00029,2]
[405093894,1770793751495,-164.62014505,0.00029288,14]
[405093895,1770793751517,-2190.34665342,0.00029507,2]
[405093896,1770793751539,-15377.34580356,0.00029517,2]
[405093897,1770793751561,-231.0,0.0003001,2]
[405093898,1770793751581,-16540.5863117,0.00030435,2]
[405093899,1770793751602,-509.4,0.00030454,2]
[405093900,1770793751627,-823.0,0.00030678,2]
[405093901,1770793751649,-634.01777951,0.00031074,2]
[405093902,1770793751675,-600.16,0.000311,14]
[405093903,1770793751698,-2190.34665342,0.00031342,2]
[405093904,1770793751719,-5486.85067224,0.00031352,2]
[405093905,1770793757124,-5000.0,0.00024953,2]
[405093906,1770793757146,-5692.10212721,0.0002689,2]
[405093907,1770793759240,5339.26959533,0.00029521,2]
[405093908,1770793761100,-352.83253188,0.00029521,2]
[405093913,1770793775809,2174.71493371,0.00030137,120]
[405093916,1770793804775,2901.7655798,0.00026958,2]
[405093953,1770793832171,-2901.7655798,0.00029745,2]
[405093955,1770793832180,-300.0,0.00030045,2]
[405093956,1770793832192,-2825.28506629,0.00030137,120]
[405093958,1770793832202,-400.0,0.00031351,2]
[405093960,1770793832211,-2000.0,0.0003173,2]
[405093961,1770793832221,-22930.9946018,0.00031952,2]
[405093962,1770793832232,-1607.01043813,0.00031991,2]
[405093989,1770793838293,-583.33621529,0.00031991,2]
[405093990,1770793838303,-3318.1326478,0.00032001,2]
[405093991,1770793838313,-4347.26143034,0.00032001,2]
[405093992,1770793838340,-965.072023,0.00032001,2]
[405093993,1770793838365,-20783.71216436,0.00032001,2]
[405093995,1770793838375,-705.628637,0.00032001,2]
[405093996,1770793838386,-258.0,0.0003201,2]
[405093997,1770793838396,-299.41438432,0.00032069,2]
[405093998,1770793838406,-5692.10212721,0.00032152,2]
[405093999,1770793838416,-776.392486,0.00032438,2]
[405094000,1770793838427,-2901.7655798,0.00032532,2]
[405094001,1770793838437,-2000.0,0.00032877,2]
[405094002,1770793838447,-211.37381251,0.00032877,2]
[405094003,1770793838458,-500.0,0.00032899,7]
[405094004,1770793838468,-8765.87,0.000329,14]
[405094005,1770793838478,-887.96,0.0003299,10]
[405094006,1770793838488,-17329.0,0.00033,2]
[405094007,1770793838499,-540.14,0.00033,30]
[405094008,1770793838509,-2190.34665342,0.00033178,2]
[405094009,1770793838520,-252.05954916,0.00033304,2]
[405094010,1770793838531,-1000.0,0.00033361,2]
[405094011,1770793838541,-442.06,0.00033361,2]
[405094012,1770793838551,-560.0,0.00033742,2]
[405094013,1770793838561,-776.392486,0.00033803,2]
[405094014,1770793838571,-896.93950683,0.00033956,2]
[405094015,1770793838581,-1400.06651144,0.00033956,2]
[405094016,1770793838592,-285.0,0.0003401,120]
[405094017,1770793838602,-671.63012537,0.00034611,2]
[405094018,1770793838612,-500.0,0.00034652,7]
[405094019,1770793838623,-5692.10212721,0.00034783,2]
[405094020,1770793838634,-357.0,0.00034857,2]
[405094021,1770793838644,-500.0,0.00034985,7]
[405094022,1770793838656,-150.0,0.00035,7]
[405094023,1770793838666,-150.0,0.00035,7]
[405094024,1770793838676,-150.0,0.00035,7]
[405094025,1770793838686,-2190.34665342,0.00035014,2]
[405094026,1770793838697,-776.392486,0.00035169,2]
[405094027,1770793838707,-2901.7655798,0.0003532,2]
[405094028,1770793838717,-200.0,0.00035396,2]
[405094029,1770793838727,-540.14,0.000354,30]
[405094030,1770793838736,-684.47,0.00035473,2]
[405094031,1770793838746,-423.0,0.00035473,2]
[405094032,1770793838755,-8765.87,0.000355,14]
[405094033,1770793838767,-1616.233451,0.00035638,2]
[405094034,1770793838777,-850.17202317,0.00035689,2]
[405094035,1770793838787,-1328.3937862,0.00035689,2]
[405094036,1770793838798,-1910.97416508,0.00035689,2]
[405094037,1770793838808,-2190.34665342,0.00035807,3]
[405094038,1770793838818,-242.83894578,0.00035817,2]
[405094039,1770793838829,-234.07770721,0.00035817,2]
[405094040,1770793838839,-302.0,0.00035817,2]
[405094041,1770793838849,-589.43897133,0.00035817,2]
[405094042,1770793838858,-209.40437684,0.00035817,2]
[405094043,1770793838868,-217.15233878,0.00035817,2]
[405094044,1770793838878,-225.18697532,0.00035817,2]
[405094045,1770793838889,-501.30030461,0.00035817,2]
[405094046,1770793838899,-233.51889341,0.00035817,2]
[405094047,1770793838909,-242.15909246,0.00035817,2]
[405094048,1770793838919,-250.0,0.00035817,2]
[405094049,1770793838929,-251.11897888,0.00035817,2]
[405094050,1770793838939,-250.0,0.00035817,2]
[405094051,1770793838949,-260.4103811,0.00035817,2]
[405094052,1770793838959,-250.0,0.00035817,2]
[405094053,1770793838969,-250.0,0.00035817,2]
[405094054,1770793838979,-270.0455652,0.00035817,2]
[405094055,1770793838989,-253.04426531,0.00035817,2]
[405094056,1770793839000,-250.0,0.00035817,2]
[405094057,1770793839009,-280.03725112,0.00035817,2]
[405094058,1770793839021,-250.0,0.00035817,2]
[405094059,1770793839031,-303.41444851,0.00035817,2]
[405094060,1770793839042,-290.39862941,0.00035817,2]
[405094061,1770793839052,-250.0,0.00035817,2]
[405094062,1770793839062,-301.1433787,0.00035817,2]
[405094063,1770793839073,-250.0,0.00035817,2]
[405094064,1770793839083,-250.0,0.00035817,2]
[405094065,1770793839093,-250.0,0.00035817,2]
[405094066,1770793839102,-274.71806547,0.00035817,2]
[405094067,1770793839112,-2190.34665342,0.0003588,3]
[405094068,1770793839122,-68643.04027354,0.0003589,10]
[405094069,1770793839131,-500.0,0.00035903,30]
[405094070,1770793839140,-312.0,0.0003601,120]
[405094071,1770793839150,-783.0,0.00036316,2]
[405094072,1770793839160,-2190.34665342,0.00036377,3]
[405094073,1770793839170,-5822.8148379,0.00036387,2]
[405094074,1770793839179,-1049.49741249,0.00036433,2]
[405094075,1770793839193,-500.0,0.00036524,30]
[405094076,1770793839203,-776.392486,0.00036534,2]
[405094077,1770793839212,-764.548,0.00036627,2]
[405094078,1770793839222,-151.0,0.000368,16]
[405094079,1770793839232,-168.0,0.00036911,2]
[405094080,1770793839241,-168.0,0.00036979,2]
[405094081,1770793839252,-4400.0,0.0003699,10]
[405094082,1770793839263,-500.0,0.000373,15]
[405094083,1770793839273,-540.14,0.000373,30]
[405094084,1770793839283,-1299.2456072,0.00037365,2]
[405094085,1770793839292,-5692.10212721,0.00037414,2]
[405094086,1770793839302,-197.12888321,0.00037471,2]
[405094087,1770793839312,-2190.34665342,0.00037583,3]
[405094088,1770793839322,-405.93669256,0.00037593,2]
[405094089,1770793839332,-730.68604661,0.00037593,2]
[405094090,1770793839341,-1298.99741619,0.00037593,2]
[405094091,1770793839349,-187.79895256,0.00037593,2]
[405094092,1770793839360,-338.03811461,0.00037593,2]
[405094093,1770793839370,-2029.68346279,0.00037593,2]
[405094094,1770793839381,-2922.74418642,0.00037593,2]
[405094095,1770793839391,-600.9566482,0.00037593,2]
[405094096,1770793839400,-938.99476282,0.00037593,2]
[405094097,1770793839411,-198.90650503,0.00037593,2]
[405094098,1770793839422,-358.03170906,0.00037593,2]
[405094099,1770793839432,-636.5008161,0.00037593,2]
[405094100,1770793839443,-994.53252516,0.00037593,2]
[405094101,1770793839454,-189.03479957,0.00037593,2]
[405094102,1770793839464,-339.92237658,0.00037593,2]
[405094103,1770793839473,-246.25068692,0.00037593,2]
[405094104,1770793839483,-443.25123645,0.00037593,2]
[405094105,1770793839493,-788.00219813,0.00037593,2]
[405094106,1770793839502,-1231.25343458,0.00037593,2]
[405094107,1770793839512,-1773.00494579,0.00037593,2]
[405094108,1770793839523,-177.80004765,0.00037593,2]
[405094109,1770793839532,-320.04008577,0.00037593,2]
[405094110,1770793839542,-568.96015248,0.00037593,2]
[405094111,1770793839551,-889.00023825,0.00037593,2]
[405094112,1770793839561,-1000.0,0.000376,15]
[405094113,1770793839570,-8765.87,0.000376,14]
[405094114,1770793839580,-5116.5964978,0.00037607,2]
[405094115,1770793839590,-168.0,0.00037631,2]
[405094116,1770793839599,-168.0,0.00037729,2]
[405094117,1770793839609,-599.0,0.00037759,30]
[405094118,1770793839618,-699.5,0.00037759,30]
[405094119,1770793839628,-2190.34665342,0.00037767,3]
[405094120,1770793839638,-4380.69330684,0.0003788,3]
[405094121,1770793839647,-100000.0,0.0003789,10]
[405094122,1770793839657,-776.392486,0.000379,2]
[405094123,1770793839666,-1000.0,0.000379,15]
[405094124,1770793839676,-151.0,0.000379,13]
[405094125,1770793839686,-150.0,0.000379,10]
[405094126,1770793839695,-665.64611151,0.0003799,2]
[405094127,1770793839705,-339.0,0.0003801,120]
[405094128,1770793839715,-400.0,0.00038167,11]
[405094129,1770793839724,-1000.0,0.000382,15]
[405094130,1770793839733,-8761.38661368,0.00038346,3]
[405094131,1770793839743,-741.77292733,0.00038346,3]
[405094132,1770793839753,-1603.40964889,0.0003835,3]
[405094133,1770793839762,-972.66577445,0.0003835,3]
[405094134,1770793839772,-449.2632666,0.0003835,3]
[405094135,1770793839782,-587.80974306,0.00038356,120]
[405094136,1770793839792,-500.0,0.00038356,120]
[405094137,1770793839801,-500.0,0.00038356,120]
[405094138,1770793839811,-500.0,0.00038356,120]
[405094139,1770793839821,-500.0,0.00038356,120]
[405094140,1770793839831,-500.0,0.00038356,120]
[405094141,1770793839949,-244.03963389,0.00038356,120]
[405094142,1770793839959,-500.0,0.00038356,120]
[405094143,1770793839968,-539.43,0.00038356,120]
[405094144,1770793839978,-500.0,0.00038356,120]
[405094145,1770793839987,-500.0,0.00038356,120]
[405094146,1770793839997,-500.0,0.00038356,120]
[405094147,1770793840007,-1738.1,0.00038356,120]
[405094148,1770793840016,-500.0,0.00038356,53]
[405094149,1770793840026,-500.0,0.00038356,120]
[405094150,1770793840036,-570.15977962,0.00038356,120]
[405094151,1770793840047,-500.0,0.00038356,2]
[405094152,1770793840057,-500.0,0.00038356,120]
[405094153,1770793840067,-500.0,0.00038356,120]
[405094154,1770793840078,-500.0,0.00038356,120]
[405094155,1770793840088,-500.0,0.00038356,120]
[405094156,1770793840098,-317.27222052,0.00038356,120]
[405094157,1770793840108,-500.0,0.00038356,120]
[405094158,1770793840118,-731.74,0.00038356,120]
[405094159,1770793840128,-500.0,0.00038356,120]
[405094160,1770793840138,-500.0,0.00038356,120]
[405094161,1770793840147,-500.0,0.00038356,120]
[405094162,1770793840157,-500.0,0.00038356,14]
[405094163,1770793840167,-519.95,0.00038356,120]
[405094164,1770793840177,-515.86879511,0.00038356,120]
[405094165,1770793840187,-513.83,0.00038356,120]
[405094166,1770793840200,-500.0,0.00038356,120]
[405094167,1770793840210,-500.0,0.00038356,120]
[405094168,1770793840220,-213.24498991,0.00038356,120]
[405094169,1770793840230,-500.0,0.00038356,120]
[405094170,1770793840241,-500.0,0.00038356,120]
[405094171,1770793840251,-723.59,0.00038356,120]
[405094172,1770793840260,-500.0,0.00038356,120]
[405094173,1770793840272,-500.0,0.00038356,120]
[405094174,1770793840281,-500.0,0.00038356,120]
[405094175,1770793840291,-500.0,0.00038356,120]
[405094177,1770793840300,-237.85101951,0.00038356,120]
[405094179,1770793840309,-500.0,0.00038356,120]
[405094181,1770793840318,-500.0,0.00038356,2]
[405094183,1770793840328,-919.03,0.00038356,120]
[405094185,1770793840337,-500.0,0.00038356,120]
[405094187,1770793840346,-851.78,0.00038356,120]
[405094189,1770793840356,-500.0,0.00038356,120]
[405094191,1770793840365,-500.0,0.00038356,120]
[405094192,1770793840375,-500.0,0.00038356,120]
[405094194,1770793840384,-500.0,0.00038356,120]
[405094196,1770793840394,-500.0,0.00038356,120]
[405094198,1770793840404,-705.77,0.00038356,120]
[405094200,1770793840414,-586.77639782,0.00038356,120]
[405094202,1770793840423,-500.0,0.00038356,7]
[405094204,1770793840434,-500.0,0.00038356,120]
[405094206,1770793840443,-500.0,0.00038356,120]
[405094208,1770793840453,-500.0,0.00038356,120]
[405094210,1770793840462,-799.4,0.00038356,120]
[405094212,1770793840471,-500.0,0.00038356,120]
[405094214,1770793840481,-500.0,0.00038356,120]
[405094216,1770793840490,-832.03,0.00038356,120]
[405094218,1770793840499,-500.0,0.00038356,120]
[405094220,1770793840508,-380.93082879,0.00038356,120]
[405094222,1770793840518,-500.0,0.00038356,120]